[Event "*** Titled Tuesday Blitz"]
[Site "Chess.com"]
[Date "2021.04.27"]
[Round "7"]
[White "chessdjw"]
[Black "elextranjero00"]
[Result "0-1"]
[WhiteElo "2733"]
[BlackElo "2606"]
[TimeControl "180+1"]
[EndTime "11:17:53 PDT"]
[Termination "elextranjero00 won by checkmate"]

1. e4 {[%clk 0:03:00.9]} 1... e5 {[%clk 0:02:58]} 2. Nf3 {[%clk 0:03:00.6]} 2...
Nc6 {[%clk 0:02:58.3]} 3. Bc4 {[%clk 0:02:56.4]} 3... Bc5 {[%clk 0:02:54.6]} 4.
c3 {[%clk 0:02:55.9]} 4... Nf6 {[%clk 0:02:54.7]} 5. d3 {[%clk 0:02:56.5]} 5...
d6 {[%clk 0:02:53.2]} 6. O-O {[%clk 0:02:55.8]} 6... a5 {[%clk 0:02:51.2]} 7.
Re1 {[%clk 0:02:54.2]} 7... h6 {[%clk 0:02:46]} 8. Nbd2 {[%clk 0:02:51.5]} 8...
O-O {[%clk 0:02:45.6]} 9. Nf1 {[%clk 0:02:51.5]} 9... Be6 {[%clk 0:02:21.4]} 10.
Bb5 {[%clk 0:02:48.1]} 10... Bb6 {[%clk 0:02:19.1]} 11. Ng3 {[%clk 0:02:43.8]}
11... Ne7 {[%clk 0:02:18.6]} 12. d4 {[%clk 0:02:42.3]} 12... exd4 {[%clk
0:02:08.2]} 13. Nxd4 {[%clk 0:02:37.8]} 13... Bd7 {[%clk 0:02:06.4]} 14. Bxd7
{[%clk 0:02:19.4]} 14... Qxd7 {[%clk 0:02:05.8]} 15. Qf3 {[%clk 0:02:07.5]}
15... Qg4 {[%clk 0:01:56.9]} 16. Qd3 {[%clk 0:01:52.1]} 16... Rfe8 {[%clk
0:01:42.3]} 17. h3 {[%clk 0:01:48.1]} 17... Qg6 {[%clk 0:01:41.3]} 18. Bd2
{[%clk 0:01:40.6]} 18... d5 {[%clk 0:01:39.4]} 19. Qf3 {[%clk 0:01:24.2]} 19...
Bxd4 {[%clk 0:01:32.3]} 20. e5 {[%clk 0:01:18.9]} 20... Ne4 {[%clk 0:01:01.4]}
21. Nxe4 {[%clk 0:01:01.6]} 21... dxe4 {[%clk 0:01:01.2]} 22. Rxe4 {[%clk
0:01:02.5]} 22... Bb6 {[%clk 0:01:01.1]} 23. Rg4 {[%clk 0:01:03]} 23... Qf5
{[%clk 0:01:01.3]} 24. Qxb7 {[%clk 0:00:45.8]} 24... Ng6 {[%clk 0:00:53.1]} 25.
Re1 {[%clk 0:00:39.7]} 25... Qxf2+ {[%clk 0:00:51.8]} 26. Kh1 {[%clk 0:00:38.6]}
26... Qxd2 {[%clk 0:00:52.3]} 27. Rf1 {[%clk 0:00:38.6]} 27... Nxe5 {[%clk
0:00:47.9]} 28. Rg3 {[%clk 0:00:36.5]} 28... Rad8 {[%clk 0:00:42.7]} 29. Qe4
{[%clk 0:00:33.3]} 29... Qd5 {[%clk 0:00:36.6]} 30. Qh4 {[%clk 0:00:25]} 30...
Ng6 {[%clk 0:00:35.8]} 31. Qg4 {[%clk 0:00:25.1]} 31... Re4 {[%clk 0:00:31.5]}
32. Qf3 {[%clk 0:00:24.9]} 32... Rde8 {[%clk 0:00:27.9]} 33. Rg4 {[%clk
0:00:20.5]} 33... Kh7 {[%clk 0:00:18.3]} 34. h4 {[%clk 0:00:15]} 34... Qe6
{[%clk 0:00:18]} 35. Rxe4 {[%clk 0:00:13.1]} 35... Qxe4 {[%clk 0:00:18.9]} 36.
h5 {[%clk 0:00:14]} 36... Qh4+ {[%clk 0:00:16.8]} 37. Qh3 {[%clk 0:00:13.8]}
37... Qxh3+ {[%clk 0:00:17.1]} 38. gxh3 {[%clk 0:00:14.4]} 38... Ne5 {[%clk
0:00:17.8]} 39. Kg2 {[%clk 0:00:14.9]} 39... Rd8 {[%clk 0:00:17.4]} 40. Kg3
{[%clk 0:00:15.3]} 40... f6 {[%clk 0:00:17]} 41. Kf4 {[%clk 0:00:15.7]} 41...
Rd2 {[%clk 0:00:16.8]} 42. Kf5 {[%clk 0:00:16.2]} 42... Kg8 {[%clk 0:00:16.1]}
43. Ke6 {[%clk 0:00:16.9]} 43... Rd6+ {[%clk 0:00:13.8]} 44. Kf5 {[%clk
0:00:16.9]} 44... Kf7 {[%clk 0:00:14.1]} 45. b4 {[%clk 0:00:16.2]} 45... axb4
{[%clk 0:00:13.8]} 46. cxb4 {[%clk 0:00:17.1]} 46... Rd4 {[%clk 0:00:10.5]} 47.
Rb1 {[%clk 0:00:17.3]} 47... Rd3 {[%clk 0:00:07.6]} 48. a4 {[%clk 0:00:16]}
48... Rf3+ {[%clk 0:00:07.7]} 49. Ke4 {[%clk 0:00:16.2]} 49... Rxh3 {[%clk
0:00:08.1]} 50. a5 {[%clk 0:00:16]} 50... Bxa5 {[%clk 0:00:08.4]} 51. bxa5
{[%clk 0:00:16.1]} 51... Ra3 {[%clk 0:00:09]} 52. Rb5 {[%clk 0:00:14.8]} 52...
c6 {[%clk 0:00:07]} 53. Rb7+ {[%clk 0:00:14.4]} 53... Kg8 {[%clk 0:00:07]} 54.
Ra7 {[%clk 0:00:12.7]} 54... c5 {[%clk 0:00:06.2]} 55. a6 {[%clk 0:00:13]} 55...
c4 {[%clk 0:00:06.3]} 56. Kf5 {[%clk 0:00:13.2]} 56... Kh7 {[%clk 0:00:05.9]}
57. Ke6 {[%clk 0:00:11.3]} 57... c3 {[%clk 0:00:06.1]} 58. Ra8 {[%clk
0:00:10.9]} 58... c2 {[%clk 0:00:06.1]} 59. Rc8 {[%clk 0:00:08.3]} 59... Rxa6+
{[%clk 0:00:06.2]} 60. Ke7 {[%clk 0:00:08.9]} 60... Rc6 {[%clk 0:00:06.8]} 61.
Rd8 {[%clk 0:00:08.4]} 61... c1=Q {[%clk 0:00:06.3]} 62. Kf8 {[%clk 0:00:08.3]}
62... Qc5+ {[%clk 0:00:06]} 63. Ke8 {[%clk 0:00:08.7]} 63... Rc8 {[%clk
0:00:04.7]} 64. Rxc8 {[%clk 0:00:09]} 64... Qxc8+ {[%clk 0:00:05.1]} 65. Ke7
{[%clk 0:00:09.9]} 65... Qd7+ {[%clk 0:00:05.5]} 66. Kf8 {[%clk 0:00:10.5]}
66... Qf7# {[%clk 0:00:06.1]} 0-1

[Event "*** Titled Tuesday Blitz"]
[Site "Chess.com"]
[Date "2021.04.27"]
[Round "7"]
[White "Ze-Pequeno"]
[Black "Kolle05"]
[Result "1-0"]
[WhiteElo "2231"]
[BlackElo "2314"]
[TimeControl "180+1"]
[EndTime "11:17:53 PDT"]
[Termination "Ze-Pequeno won by resignation"]

1. e4 {[%clk 0:03:00.9]} 1... c5 {[%clk 0:02:59.5]} 2. Nf3 {[%clk 0:03:00.6]}
2... d6 {[%clk 0:02:59.6]} 3. d4 {[%clk 0:03:01.5]} 3... cxd4 {[%clk 0:03:00.5]}
4. Nxd4 {[%clk 0:03:02.2]} 4... Nf6 {[%clk 0:03:01.2]} 5. Nc3 {[%clk 0:03:02.4]}
5... a6 {[%clk 0:03:01.6]} 6. f4 {[%clk 0:03:02.5]} 6... e5 {[%clk 0:03:00.6]}
7. Nf3 {[%clk 0:03:02.6]} 7... Qc7 {[%clk 0:03:00.7]} 8. a4 {[%clk 0:03:03.5]}
8... Be7 {[%clk 0:02:58.3]} 9. Bd3 {[%clk 0:03:04.4]} 9... O-O {[%clk
0:02:57.3]} 10. O-O {[%clk 0:03:05.3]} 10... Nc6 {[%clk 0:02:54.8]} 11. Kh1
{[%clk 0:03:06.2]} 11... Bg4 {[%clk 0:02:51.6]} 12. Qe1 {[%clk 0:03:06.4]} 12...
Rfe8 {[%clk 0:02:42.8]} 13. Qg3 {[%clk 0:03:07.3]} 13... Bf8 {[%clk 0:02:29.4]}
14. Nd5 {[%clk 0:03:02.7]} 14... Nxd5 {[%clk 0:02:23.2]} 15. exd5 {[%clk
0:03:00.2]} 15... Bxf3 {[%clk 0:02:22.8]} 16. Qxf3 {[%clk 0:02:58.1]} 16... Nd4
{[%clk 0:02:00.6]} 17. Qf2 {[%clk 0:02:56]} 17... e4 {[%clk 0:01:23.8]} 18. Qxd4
{[%clk 0:02:52.2]} 18... exd3 {[%clk 0:01:23.7]} 19. Qxd3 {[%clk 0:02:53.1]}
19... Rac8 {[%clk 0:01:24]} 20. c3 {[%clk 0:02:51.6]} 20... Qc4 {[%clk
0:01:24.4]} 21. Qxc4 {[%clk 0:02:39.8]} 21... Rxc4 {[%clk 0:01:25.3]} 22. Bd2
{[%clk 0:02:39.5]} 22... Rc5 {[%clk 0:01:25.6]} 23. Rae1 {[%clk 0:01:54.7]}
23... Rxe1 {[%clk 0:01:22.9]} 24. Rxe1 {[%clk 0:01:53.9]} 24... Rxd5 {[%clk
0:01:21.9]} 25. Be3 {[%clk 0:01:54.8]} 25... b5 {[%clk 0:01:10.9]} 26. axb5
{[%clk 0:01:53.9]} 26... Rxb5 {[%clk 0:01:11.8]} 27. Re2 {[%clk 0:01:43.4]}
27... f6 {[%clk 0:01:02.9]} 28. g4 {[%clk 0:01:23.1]} 28... Kf7 {[%clk
0:01:00.8]} 29. Kg2 {[%clk 0:01:22]} 29... d5 {[%clk 0:00:58.6]} 30. Kf3 {[%clk
0:01:17]} 30... a5 {[%clk 0:00:56.6]} 31. Bd4 {[%clk 0:01:10.6]} 31... a4 {[%clk
0:00:55.5]} 32. Ke3 {[%clk 0:01:10.2]} 32... a3 {[%clk 0:00:54.6]} 33. bxa3
{[%clk 0:01:11.1]} 33... Bxa3 {[%clk 0:00:54.9]} 34. Ra2 {[%clk 0:01:11.7]}
34... Be7 {[%clk 0:00:50.4]} 35. Ra7 {[%clk 0:01:09.8]} 35... Kf8 {[%clk
0:00:15.9]} 36. Ra8+ {[%clk 0:01:06]} 36... Kf7 {[%clk 0:00:15.6]} 37. Ra7
{[%clk 0:01:06.4]} 37... Ke8 {[%clk 0:00:12.5]} 38. f5 {[%clk 0:01:07.3]} 38...
Rb2 {[%clk 0:00:11.9]} 39. Ra8+ {[%clk 0:01:01]} 39... Kf7 {[%clk 0:00:12.1]}
40. Ra7 {[%clk 0:01:00.6]} 40... Ke8 {[%clk 0:00:10.7]} 41. Ra5 {[%clk
0:00:54.8]} 41... Rxh2 {[%clk 0:00:09.5]} 42. Rxd5 {[%clk 0:00:51.7]} 42... h5
{[%clk 0:00:09.6]} 43. gxh5 {[%clk 0:00:49.2]} 43... Rxh5 {[%clk 0:00:10.5]} 44.
Ke4 {[%clk 0:00:49]} 44... Rh4+ {[%clk 0:00:09.1]} 45. Kd3 {[%clk 0:00:47.4]}
45... Kf7 {[%clk 0:00:08.6]} 46. Ra5 {[%clk 0:00:45.7]} 46... g6 {[%clk
0:00:07.2]} 47. Ra7 {[%clk 0:00:44]} 47... Rh7 {[%clk 0:00:03.6]} 48. Bc5 {[%clk
0:00:33.1]} 48... Ke8 {[%clk 0:00:02.6]} 49. Rxe7+ {[%clk 0:00:29.2]} 49... Rxe7
{[%clk 0:00:02.5]} 50. Bxe7 {[%clk 0:00:29.5]} 50... Kxe7 {[%clk 0:00:03.4]} 51.
fxg6 {[%clk 0:00:29.6]} 51... f5 {[%clk 0:00:04.3]} 52. Kd4 {[%clk 0:00:26.3]}
52... Kf6 {[%clk 0:00:04]} 53. c4 {[%clk 0:00:26.1]} 53... Kxg6 {[%clk
0:00:04.5]} 54. Ke5 {[%clk 0:00:24.2]} 54... Kf7 {[%clk 0:00:04.5]} 55. Kxf5
{[%clk 0:00:23.1]} 55... Ke7 {[%clk 0:00:04.7]} 56. Ke5 {[%clk 0:00:22.7]} 56...
Kd7 {[%clk 0:00:05.1]} 57. Kd5 {[%clk 0:00:22.6]} 57... Kc7 {[%clk 0:00:06]} 58.
Kc5 {[%clk 0:00:22.5]} 58... Kd7 {[%clk 0:00:06.9]} 59. Kb6 {[%clk 0:00:22.6]}
59... Kc8 {[%clk 0:00:07.8]} 60. Kc6 {[%clk 0:00:22.3]} 60... Kb8 {[%clk
0:00:08.7]} 61. Kd7 {[%clk 0:00:22.2]} 61... Kb7 {[%clk 0:00:09.6]} 62. c5
{[%clk 0:00:22.8]} 62... Ka6 {[%clk 0:00:10.5]} 63. c6 {[%clk 0:00:23.7]} 63...
Kb5 {[%clk 0:00:11.4]} 64. c7 {[%clk 0:00:24.2]} 64... Kc4 {[%clk 0:00:12.3]}
65. c8=Q+ {[%clk 0:00:24.3]} 65... Kd4 {[%clk 0:00:13.2]} 1-0

[Event "*** Titled Tuesday Blitz"]
[Site "Chess.com"]
[Date "2021.04.27"]
[Round "7"]
[White "Gmedmundo"]
[Black "Aygehovit1992"]
[Result "0-1"]
[WhiteElo "2439"]
[BlackElo "2629"]
[TimeControl "180+1"]
[EndTime "11:17:54 PDT"]
[Termination "Aygehovit1992 won on time"]

1. e4 {[%clk 0:03:00.9]} 1... c5 {[%clk 0:02:58.9]} 2. Nf3 {[%clk 0:02:59.3]}
2... d6 {[%clk 0:02:59.4]} 3. d4 {[%clk 0:02:57.9]} 3... cxd4 {[%clk 0:03:00.3]}
4. Nxd4 {[%clk 0:02:57.6]} 4... Nf6 {[%clk 0:03:00]} 5. Nc3 {[%clk 0:02:57.4]}
5... a6 {[%clk 0:03:00.3]} 6. Be3 {[%clk 0:02:56.8]} 6... e5 {[%clk 0:02:58.8]}
7. Nb3 {[%clk 0:02:55.9]} 7... Be6 {[%clk 0:02:55.3]} 8. f3 {[%clk 0:02:55.3]}
8... h5 {[%clk 0:02:55.3]} 9. Qd2 {[%clk 0:02:53.5]} 9... Nbd7 {[%clk
0:02:55.3]} 10. Nd5 {[%clk 0:02:51.3]} 10... Bxd5 {[%clk 0:02:54.8]} 11. exd5
{[%clk 0:02:50.8]} 11... Rc8 {[%clk 0:02:49.8]} 12. c4 {[%clk 0:02:43.7]} 12...
Be7 {[%clk 0:02:40.6]} 13. Be2 {[%clk 0:02:38.1]} 13... h4 {[%clk 0:02:39.8]}
14. Na5 {[%clk 0:02:34.7]} 14... Qc7 {[%clk 0:02:38.4]} 15. O-O {[%clk
0:02:32.5]} 15... Nh5 {[%clk 0:02:36.1]} 16. b4 {[%clk 0:02:29.1]} 16... O-O
{[%clk 0:02:28.5]} 17. Rac1 {[%clk 0:02:24]} 17... Nf4 {[%clk 0:02:24.9]} 18.
Rfe1 {[%clk 0:02:13.6]} 18... Bg5 {[%clk 0:02:13.2]} 19. Bf1 {[%clk 0:02:11.3]}
19... f6 {[%clk 0:01:56.1]} 20. c5 {[%clk 0:02:00]} 20... Kh8 {[%clk 0:01:23.2]}
21. c6 {[%clk 0:01:55.6]} 21... bxc6 {[%clk 0:01:22.3]} 22. dxc6 {[%clk
0:01:43.3]} 22... Nb8 {[%clk 0:01:16.3]} 23. a4 {[%clk 0:01:35]} 23... d5 {[%clk
0:01:15]} 24. Bc5 {[%clk 0:01:33.4]} 24... Rfd8 {[%clk 0:01:12.4]} 25. Qf2
{[%clk 0:01:30.6]} 25... Nxc6 {[%clk 0:01:08.1]} 26. Bb6 {[%clk 0:01:27.3]}
26... Qd7 {[%clk 0:00:47.3]} 27. Nxc6 {[%clk 0:01:16.3]} 27... Re8 {[%clk
0:00:45.6]} 28. b5 {[%clk 0:01:08.3]} 28... d4 {[%clk 0:00:45.2]} 29. g3 {[%clk
0:01:00.5]} 29... Nd5 {[%clk 0:00:44]} 30. Kh1 {[%clk 0:00:48.8]} 30... Bxc1
{[%clk 0:00:41.2]} 31. Rxc1 {[%clk 0:00:47.8]} 31... Nc3 {[%clk 0:00:35.9]} 32.
gxh4 {[%clk 0:00:40.8]} 32... Nxa4 {[%clk 0:00:35.6]} 33. Ba5 {[%clk 0:00:35.4]}
33... axb5 {[%clk 0:00:35.1]} 34. Bxb5 {[%clk 0:00:34.7]} 34... Nc3 {[%clk
0:00:35.5]} 35. Bxc3 {[%clk 0:00:31.4]} 35... dxc3 {[%clk 0:00:36.4]} 36. Rxc3
{[%clk 0:00:30.9]} 36... Red8 {[%clk 0:00:18.9]} 37. Kg2 {[%clk 0:00:23.6]}
37... Qd1 {[%clk 0:00:16.1]} 38. Re3 {[%clk 0:00:19.2]} 38... Rd2 {[%clk
0:00:15.4]} 39. Re2 {[%clk 0:00:19]} 39... Rxe2 {[%clk 0:00:15.7]} 40. Bxe2
{[%clk 0:00:18.9]} 40... Qd2 {[%clk 0:00:13.3]} 41. Ne7 {[%clk 0:00:18.5]} 41...
Rc2 {[%clk 0:00:13.2]} 42. Ng6+ {[%clk 0:00:17.1]} 42... Kh7 {[%clk 0:00:12.1]}
43. Nf8+ {[%clk 0:00:16.3]} 43... Kg8 {[%clk 0:00:10.8]} 44. Bc4+ {[%clk
0:00:12.6]} 44... Kxf8 {[%clk 0:00:11.2]} 45. Qxd2 {[%clk 0:00:11.7]} 45...
Rxd2+ {[%clk 0:00:11.6]} 46. Kg3 {[%clk 0:00:11.7]} 46... Rd4 {[%clk 0:00:11.8]}
47. Be6 {[%clk 0:00:11]} 47... Ke7 {[%clk 0:00:12.2]} 48. Bf5 {[%clk 0:00:10.8]}
48... Kd6 {[%clk 0:00:12.7]} 49. h5 {[%clk 0:00:10.8]} 49... Kc5 {[%clk
0:00:13]} 50. h6 {[%clk 0:00:10.8]} 50... gxh6 {[%clk 0:00:13.1]} 51. h4 {[%clk
0:00:10.7]} 51... Kb4 {[%clk 0:00:13]} 52. h5 {[%clk 0:00:09.5]} 52... Kc3
{[%clk 0:00:13.4]} 53. Be4 {[%clk 0:00:08.8]} 53... Kd2 {[%clk 0:00:13.6]} 54.
Kg4 {[%clk 0:00:08.6]} 54... Ke3 {[%clk 0:00:13.9]} 55. Kf5 {[%clk 0:00:08.4]}
55... Rd6 {[%clk 0:00:12.5]} 56. Kg6 {[%clk 0:00:07.8]} 56... Rb6 {[%clk
0:00:12.8]} 57. Bf5 {[%clk 0:00:07]} 57... Kxf3 {[%clk 0:00:12.5]} 58. Kxh6
{[%clk 0:00:07.1]} 58... e4 {[%clk 0:00:13.1]} 59. Kg6 {[%clk 0:00:05.9]} 59...
e3 {[%clk 0:00:13.5]} 60. h6 {[%clk 0:00:05.5]} 60... e2 {[%clk 0:00:13.4]} 61.
h7 {[%clk 0:00:04]} 61... Rb8 {[%clk 0:00:13.4]} 62. Bg4+ {[%clk 0:00:01.1]}
62... Kxg4 {[%clk 0:00:12.4]} 0-1

[Event "*** Titled Tuesday Blitz"]
[Site "Chess.com"]
[Date "2021.04.27"]
[Round "7"]
[White "NoGalloNoParty"]
[Black "queen_iryna"]
[Result "0-1"]
[WhiteElo "2348"]
[BlackElo "2393"]
[TimeControl "180+1"]
[EndTime "11:17:59 PDT"]
[Termination "queen_iryna won by resignation"]

1. d4 {[%clk 0:03:00.9]} 1... d6 {[%clk 0:03:00.9]} 2. Nf3 {[%clk 0:02:59.4]}
2... g6 {[%clk 0:03:01]} 3. c4 {[%clk 0:02:59.5]} 3... Bg7 {[%clk 0:03:01.1]} 4.
Nc3 {[%clk 0:03:00.2]} 4... Nc6 {[%clk 0:02:57.3]} 5. h3 {[%clk 0:02:40.6]} 5...
e5 {[%clk 0:02:53]} 6. d5 {[%clk 0:02:39.4]} 6... Nce7 {[%clk 0:02:51.3]} 7. e4
{[%clk 0:02:39.1]} 7... f5 {[%clk 0:02:47]} 8. Be2 {[%clk 0:02:22.5]} 8... Nf6
{[%clk 0:02:46.7]} 9. Bg5 {[%clk 0:02:12.3]} 9... O-O {[%clk 0:02:45.7]} 10. Qc1
{[%clk 0:02:06.5]} 10... fxe4 {[%clk 0:02:25.2]} 11. Nd2 {[%clk 0:02:05.6]}
11... h6 {[%clk 0:02:24.8]} 12. Bxf6 {[%clk 0:02:00.6]} 12... Bxf6 {[%clk
0:02:23.1]} 13. Ndxe4 {[%clk 0:02:01]} 13... Bg7 {[%clk 0:02:22.9]} 14. Bg4
{[%clk 0:01:43.5]} 14... Nf5 {[%clk 0:02:18.5]} 15. Qd2 {[%clk 0:01:33.8]} 15...
Nd4 {[%clk 0:02:13.5]} 16. Bxc8 {[%clk 0:01:31.8]} 16... Rxc8 {[%clk 0:02:13.2]}
17. O-O {[%clk 0:01:29.1]} 17... Rf4 {[%clk 0:02:08.5]} 18. c5 {[%clk
0:01:03.9]} 18... Qh4 {[%clk 0:01:57.9]} 19. Rae1 {[%clk 0:00:57]} 19... dxc5
{[%clk 0:01:30.1]} 20. Nxc5 {[%clk 0:00:55.1]} 20... Rcf8 {[%clk 0:01:28.7]} 21.
Ne6 {[%clk 0:00:52.2]} 21... Nxe6 {[%clk 0:01:27.7]} 22. dxe6 {[%clk 0:00:52]}
22... e4 {[%clk 0:01:14.4]} 23. Nd5 {[%clk 0:00:47.9]} 23... R4f5 {[%clk
0:00:54.7]} 24. e7 {[%clk 0:00:31.1]} 24... Re8 {[%clk 0:00:54.8]} 25. g3 {[%clk
0:00:22.7]} 25... Qxh3 {[%clk 0:00:54.5]} 26. Rxe4 {[%clk 0:00:21.5]} 26... Rh5
{[%clk 0:00:52.7]} 27. Rh4 {[%clk 0:00:17.1]} 27... Rxh4 {[%clk 0:00:52.1]} 28.
gxh4 {[%clk 0:00:17.6]} 28... Qg4+ {[%clk 0:00:52.4]} 29. Kh1 {[%clk 0:00:16.7]}
29... Qxh4+ {[%clk 0:00:52.6]} 30. Kg1 {[%clk 0:00:16.2]} 30... Qg4+ {[%clk
0:00:44.4]} 31. Kh1 {[%clk 0:00:15.7]} 31... Qf3+ {[%clk 0:00:43.9]} 32. Kg1
{[%clk 0:00:14.4]} 32... Be5 {[%clk 0:00:41.8]} 33. Re1 {[%clk 0:00:12.9]} 33...
Qg4+ {[%clk 0:00:39.9]} 34. Kf1 {[%clk 0:00:12.9]} 34... Qh3+ {[%clk 0:00:34.2]}
35. Ke2 {[%clk 0:00:12.9]} 35... Qh5+ {[%clk 0:00:27.6]} 36. f3 {[%clk
0:00:12.2]} 36... Qh2+ {[%clk 0:00:26.9]} 37. Kd1 {[%clk 0:00:12.5]} 37... Qxd2+
{[%clk 0:00:25.5]} 38. Kxd2 {[%clk 0:00:12.9]} 38... c6 {[%clk 0:00:16.3]} 39.
Rxe5 {[%clk 0:00:05.9]} 39... cxd5 {[%clk 0:00:17.2]} 40. Rxd5 {[%clk
0:00:03.1]} 40... Rxe7 {[%clk 0:00:16.6]} 41. Rd6 {[%clk 0:00:03.7]} 41... Kf7
{[%clk 0:00:16.5]} 42. Kd3 {[%clk 0:00:04]} 42... h5 {[%clk 0:00:16.4]} 43. f4
{[%clk 0:00:03.6]} 43... Kg7 {[%clk 0:00:14.7]} 44. b4 {[%clk 0:00:04]} 44... h4
{[%clk 0:00:14.1]} 45. a4 {[%clk 0:00:04.5]} 45... h3 {[%clk 0:00:13.9]} 46. Kc3
{[%clk 0:00:04.4]} 46... h2 {[%clk 0:00:12.6]} 47. Rd1 {[%clk 0:00:05]} 47...
Re3+ {[%clk 0:00:11.6]} 48. Kd4 {[%clk 0:00:04.5]} 48... Rh3 {[%clk 0:00:11.7]}
49. Rh1 {[%clk 0:00:04.9]} 49... Kf6 {[%clk 0:00:12]} 50. Ke4 {[%clk 0:00:05]}
50... Rh4 {[%clk 0:00:12]} 51. Kf3 {[%clk 0:00:04.8]} 51... Kf5 {[%clk
0:00:10.9]} 52. Kg3 {[%clk 0:00:05.2]} 52... Rh7 {[%clk 0:00:08.9]} 53. b5
{[%clk 0:00:05.1]} 53... b6 {[%clk 0:00:08.5]} 54. Rxh2 {[%clk 0:00:04.2]} 54...
Rxh2 {[%clk 0:00:08.2]} 55. Kxh2 {[%clk 0:00:05.1]} 55... Kxf4 {[%clk 0:00:09]}
56. Kh3 {[%clk 0:00:05.7]} 56... g5 {[%clk 0:00:08]} 57. Kg2 {[%clk 0:00:05.5]}
57... Kg4 {[%clk 0:00:08.3]} 58. Kh2 {[%clk 0:00:05.6]} 58... Kf3 {[%clk
0:00:08.4]} 59. Kg1 {[%clk 0:00:05.7]} 59... g4 {[%clk 0:00:08.3]} 60. Kf1
{[%clk 0:00:05.5]} 60... g3 {[%clk 0:00:07.1]} 61. Kg1 {[%clk 0:00:05.6]} 61...
Ke4 {[%clk 0:00:06.9]} 62. Kg2 {[%clk 0:00:05.4]} 62... Kd4 {[%clk 0:00:07.8]}
63. Kxg3 {[%clk 0:00:05.9]} 63... Kc4 {[%clk 0:00:08.7]} 64. Kf3 {[%clk
0:00:06.5]} 64... Kb4 {[%clk 0:00:08.9]} 65. Ke4 {[%clk 0:00:07.4]} 65... Kxa4
{[%clk 0:00:09.1]} 0-1

[Event "*** Titled Tuesday Blitz"]
[Site "Chess.com"]
[Date "2021.04.27"]
[Round "7"]
[White "The_Machine04"]
[Black "NateSolon"]
[Result "1/2-1/2"]
[WhiteElo "2456"]
[BlackElo "2624"]
[TimeControl "180+1"]
[EndTime "11:18:05 PDT"]
[Termination "Game drawn by stalemate"]

1. d4 {[%clk 0:03:00.9]} 1... Nf6 {[%clk 0:02:59.6]} 2. Bg5 {[%clk 0:03:01.3]}
2... d5 {[%clk 0:02:58.6]} 3. e3 {[%clk 0:03:01.5]} 3... c5 {[%clk 0:02:58.4]}
4. Bxf6 {[%clk 0:03:00.2]} 4... gxf6 {[%clk 0:02:59.3]} 5. dxc5 {[%clk
0:03:00.6]} 5... Nc6 {[%clk 0:02:56.7]} 6. Bb5 {[%clk 0:02:59.4]} 6... e6 {[%clk
0:02:49.1]} 7. c4 {[%clk 0:02:57.3]} 7... dxc4 {[%clk 0:02:38]} 8. Nd2 {[%clk
0:02:51.2]} 8... c3 {[%clk 0:02:31.7]} 9. bxc3 {[%clk 0:02:52.1]} 9... Bxc5
{[%clk 0:02:30.5]} 10. Qh5 {[%clk 0:02:44.4]} 10... Be7 {[%clk 0:02:19.4]} 11.
Ngf3 {[%clk 0:02:40.3]} 11... Bd7 {[%clk 0:02:17.1]} 12. Rd1 {[%clk 0:02:37.9]}
12... Qc7 {[%clk 0:02:08.6]} 13. O-O {[%clk 0:02:33.7]} 13... a6 {[%clk
0:01:53.8]} 14. Ba4 {[%clk 0:02:32]} 14... b5 {[%clk 0:01:23.3]} 15. Bb3 {[%clk
0:02:31.7]} 15... Na5 {[%clk 0:01:22.9]} 16. Ne4 {[%clk 0:02:25.7]} 16... Nxb3
{[%clk 0:01:17.6]} 17. axb3 {[%clk 0:02:25.1]} 17... Bc6 {[%clk 0:01:17.2]} 18.
Qh4 {[%clk 0:02:20.5]} 18... f5 {[%clk 0:01:14]} 19. Nf6+ {[%clk 0:02:19.6]}
19... Bxf6 {[%clk 0:01:10.7]} 20. Qxf6 {[%clk 0:02:20.5]} 20... Rg8 {[%clk
0:01:09.3]} 21. Ne1 {[%clk 0:01:51.3]} 21... Rd8 {[%clk 0:00:56.3]} 22. Rxd8+
{[%clk 0:01:50.4]} 22... Qxd8 {[%clk 0:00:57.2]} 23. Qxd8+ {[%clk 0:01:50.4]}
23... Kxd8 {[%clk 0:00:58.1]} 24. b4 {[%clk 0:01:49.9]} 24... Rg4 {[%clk
0:00:53.6]} 25. f4 {[%clk 0:01:37.1]} 25... Ke7 {[%clk 0:00:48.4]} 26. Kf2
{[%clk 0:01:35.9]} 26... Rg8 {[%clk 0:00:40.4]} 27. g3 {[%clk 0:01:33.4]} 27...
Rd8 {[%clk 0:00:36.1]} 28. Nf3 {[%clk 0:01:23.2]} 28... Bxf3 {[%clk 0:00:33.3]}
29. Kxf3 {[%clk 0:01:24.1]} 29... Rc8 {[%clk 0:00:25.4]} 30. Rc1 {[%clk
0:01:22.4]} 30... Rc4 {[%clk 0:00:24.7]} 31. Ke2 {[%clk 0:01:21.6]} 31... f6
{[%clk 0:00:19]} 32. Kd3 {[%clk 0:01:20.4]} 32... e5 {[%clk 0:00:19.5]} 33. Ra1
{[%clk 0:01:18.1]} 33... Rc6 {[%clk 0:00:19.8]} 34. Ra2 {[%clk 0:01:14]} 34...
Ke6 {[%clk 0:00:20.3]} 35. Ra1 {[%clk 0:01:13.6]} 35... Kd5 {[%clk 0:00:20.8]}
36. Ra2 {[%clk 0:01:07.3]} 36... Rd6 {[%clk 0:00:20.8]} 37. Ra1 {[%clk
0:01:05.6]} 37... e4+ {[%clk 0:00:19.3]} 38. Kc2 {[%clk 0:01:05.6]} 38... Kc4
{[%clk 0:00:20.2]} 39. Ra3 {[%clk 0:00:43.7]} 39... Rd3 {[%clk 0:00:14.9]} 40.
Rxa6 {[%clk 0:00:43.3]} 40... Rxe3 {[%clk 0:00:15.4]} 41. Rc6+ {[%clk 0:00:40]}
41... Kd5 {[%clk 0:00:15.6]} 42. Rc5+ {[%clk 0:00:26.7]} 42... Ke6 {[%clk
0:00:16.1]} 43. Rxb5 {[%clk 0:00:27.6]} 43... Re2+ {[%clk 0:00:16.4]} 44. Kd1
{[%clk 0:00:27.8]} 44... Rxh2 {[%clk 0:00:17.3]} 45. c4 {[%clk 0:00:23.3]} 45...
Rg2 {[%clk 0:00:17.5]} 46. Rb6+ {[%clk 0:00:23.4]} 46... Ke7 {[%clk 0:00:17.8]}
47. Rb7+ {[%clk 0:00:23.9]} 47... Ke6 {[%clk 0:00:18]} 48. b5 {[%clk 0:00:17.3]}
48... Rxg3 {[%clk 0:00:17.9]} 49. b6 {[%clk 0:00:17.4]} 49... Rb3 {[%clk
0:00:18.2]} 50. c5 {[%clk 0:00:17.3]} 50... Kd5 {[%clk 0:00:18.3]} 51. Rc7
{[%clk 0:00:17.3]} 51... h5 {[%clk 0:00:16.6]} 52. b7 {[%clk 0:00:17.5]} 52...
h4 {[%clk 0:00:16.2]} 53. c6 {[%clk 0:00:17.4]} 53... h3 {[%clk 0:00:16.7]} 54.
Kc2 {[%clk 0:00:14.8]} 54... Rb5 {[%clk 0:00:16]} 55. Rc8 {[%clk 0:00:14]} 55...
h2 {[%clk 0:00:16]} 56. Rh8 {[%clk 0:00:13]} 56... Kxc6 {[%clk 0:00:16.3]} 57.
Rxh2 {[%clk 0:00:12.1]} 57... Rxb7 {[%clk 0:00:16.7]} 58. Rh6 {[%clk 0:00:12]}
58... Rf7 {[%clk 0:00:15.6]} 59. Rh5 {[%clk 0:00:11.9]} 59... Kd5 {[%clk
0:00:15.6]} 60. Rxf5+ {[%clk 0:00:12.3]} 60... Kd4 {[%clk 0:00:16.3]} 61. Ra5
{[%clk 0:00:12]} 61... e3 {[%clk 0:00:16.1]} 62. Ra4+ {[%clk 0:00:12]} 62... Kd5
{[%clk 0:00:16.5]} 63. Kd3 {[%clk 0:00:12.7]} 63... Re7 {[%clk 0:00:16.2]} 64.
Ke2 {[%clk 0:00:12.7]} 64... Kc5 {[%clk 0:00:15.5]} 65. Ra6 {[%clk 0:00:11.7]}
65... Kd4 {[%clk 0:00:13.2]} 66. Rxf6 {[%clk 0:00:11.1]} 66... Ke4 {[%clk
0:00:13.7]} 67. Ra6 {[%clk 0:00:09.5]} 67... Kxf4 {[%clk 0:00:13.8]} 68. Ra4+
{[%clk 0:00:09.7]} 68... Re4 {[%clk 0:00:14.1]} 69. Rxe4+ {[%clk 0:00:08.7]}
69... Kxe4 {[%clk 0:00:13.8]} 70. Ke1 {[%clk 0:00:09.6]} 70... Kd3 {[%clk
0:00:14.2]} 71. Kd1 {[%clk 0:00:09.4]} 71... Kd4 {[%clk 0:00:15.1]} 72. Ke2
{[%clk 0:00:08.9]} 72... Ke4 {[%clk 0:00:16]} 73. Ke1 {[%clk 0:00:09.6]} 73...
Kd3 {[%clk 0:00:16.4]} 74. Kd1 {[%clk 0:00:10.1]} 74... e2+ {[%clk 0:00:17]} 75.
Ke1 {[%clk 0:00:10.6]} 75... Ke3 {[%clk 0:00:17.9]} 1/2-1/2